fUST/lending_fUST_20250506
["ID","MTS","AMOUNT","RATE_DAILY","PERIOD"]
[360088582,1746545451925,-657.42,0.00019452,2]
[360088583,1746545451934,-2054.02,0.00019452,2]
[360088584,1746545451944,-400.0,0.00019452,2]
[360088585,1746545451955,-2645.03,0.00019452,2]
[360088586,1746545451966,-324.96985208,0.00019453,2]
[360088587,1746545451976,-500.0,0.00019473,2]
[360088588,1746545451987,-500.0,0.00019473,2]
[360088589,1746545451996,-8334.29931079,0.00019529,2]
[360088590,1746545452006,-476.44793314,0.00019538,2]
[360088591,1746545452014,-200.0,0.00019554,4]
[360088592,1746545452024,-231.99734595,0.00019554,4]
[360088593,1746545452034,-1664.6160073,0.00019555,2]
[360088594,1746545452044,-951.6694427,0.00019627,2]
[360088595,1746545452054,-187.0,0.000197,3]
[360088596,1746545452063,-155.0,0.00019725,2]
[360088597,1746545452072,-142577.2731235,0.00019725,2]
[360088598,1746545452082,-151.0,0.00019725,2]
[360088599,1746545452092,-325710.49893529,0.00019726,5]
[360088600,1746545452101,-151.0,0.00019726,2]
[360088601,1746545452110,-151.0,0.00019726,2]
[360088602,1746545452120,-350.613043,0.00019726,2]
[360088603,1746545452129,-350.613043,0.00019726,2]
[360088604,1746545452138,-350.613043,0.00019726,2]
[360088605,1746545452148,-350.613043,0.00019726,2]
[360088606,1746545452158,-350.613043,0.00019726,2]
[360088607,1746545452168,-151.0,0.00019726,2]
[360088608,1746545452177,-151.000001,0.00019726,2]
[360088609,1746545452186,-372.762009,0.00019726,2]
[360088610,1746545452195,-372.762009,0.00019726,2]
[360088611,1746545452205,-372.762009,0.00019726,2]
[360088612,1746545452215,-372.762009,0.00019726,2]
[360088613,1746545452224,-372.762009,0.00019726,2]
[360088614,1746545452234,-372.762009,0.00019726,2]
[360088615,1746545452243,-151.0,0.00019726,2]
[360088616,1746545452254,-151.0,0.00019726,2]
[360088617,1746545452263,-151.0,0.00019726,2]
[360088618,1746545452273,-151.0,0.00019726,2]
[360088619,1746545452283,-151.0,0.00019726,2]
[360088620,1746545452293,-151.0,0.00019726,2]
[360088621,1746545452303,-151.0,0.00019726,2]
[360088622,1746545452312,-151.0,0.00019726,2]
[360088623,1746545452322,-151.0,0.00019726,2]
[360088624,1746545452331,-151.0,0.00019726,2]
[360088625,1746545452341,-151.0,0.00019726,2]
[360088626,1746545452350,-151.0,0.00019726,2]
[360088627,1746545452363,-456.41,0.00019726,2]
[360088628,1746545452373,-174.33508662,0.00019726,2]
[360088629,1746545452383,-400.0,0.00019726,2]
[360088630,1746545452392,-1066.43,0.00019726,2]
[360088631,1746545452402,-400.0,0.00019726,2]
[360088632,1746545452412,-153.140766,0.00019726,2]
[360088633,1746545452422,-400.0,0.00019726,2]
[360088634,1746545452431,-476.22725937,0.00019726,2]
[360088635,1746545452440,-555.86093688,0.00019726,2]
[360088636,1746545452450,-455.74613091,0.00019726,2]
[360088637,1746545452459,-667.88,0.00019726,2]
[360088638,1746545452468,-151.0,0.00019726,2]
[360088639,1746545452478,-151.0,0.00019726,2]
[360088640,1746545452487,-400.0,0.00019726,2]
[360088641,1746545452497,-151.0,0.00019726,2]
[360088642,1746545452506,-550.22,0.00019726,2]
[360088643,1746545452516,-151.0,0.00019726,2]
[360088644,1746545452656,-400.0,0.00019726,2]
[360088645,1746545452666,-400.0,0.00019726,2]
[360088646,1746545452675,-400.0,0.00019726,2]
[360088647,1746545452684,-400.0,0.00019726,2]
[360088648,1746545452693,-400.0,0.00019726,2]
[360088649,1746545452702,-507.8850277,0.00019726,2]
[360088650,1746545452712,-386.24297431,0.00019726,2]
[360088651,1746545452721,-401.8274264,0.00019726,2]
[360088652,1746545452731,-400.0,0.00019726,2]
[360088653,1746545452739,-400.0,0.00019726,2]
[360088654,1746545452749,-400.0,0.00019726,2]
[360088655,1746545452758,-561.19,0.00019726,2]
[360088656,1746545452767,-400.0,0.00019726,2]
[360088657,1746545452779,-151.0,0.00019726,2]
[360088658,1746545452788,-202.6,0.00019726,2]
[360088659,1746545452798,-400.0,0.00019726,2]
[360088660,1746545452808,-400.0,0.00019726,2]
[360088661,1746545452818,-300.0,0.00019726,2]
[360088662,1746545452828,-400.0,0.00019726,2]
[360088663,1746545452837,-400.0,0.00019726,2]
[360088664,1746545452846,-447.23,0.00019726,2]
[360088665,1746545452855,-400.0,0.00019726,2]
[360088666,1746545452865,-400.0,0.00019726,2]
[360088667,1746545452874,-400.0,0.00019726,2]
[360088668,1746545452886,-731.58,0.00019726,2]
[360088669,1746545452896,-212.38482836,0.00019726,2]
[360088670,1746545452905,-151.0,0.00019726,2]
[360088671,1746545452915,-151.0,0.00019726,2]
[360088672,1746545452924,-400.0,0.00019726,2]
[360088673,1746545452934,-400.0,0.00019726,2]
[360088674,1746545452943,-401.69554683,0.00019726,2]
[360088675,1746545452953,-400.0,0.00019726,2]
[360088676,1746545452965,-400.0,0.00019726,2]
[360088677,1746545452975,-151.0,0.00019726,2]
[360088678,1746545452984,-151.0,0.00019726,2]
[360088679,1746545452994,-400.0,0.00019726,2]
[360088680,1746545453005,-474.96,0.00019726,2]
[360088681,1746545453014,-151.0,0.00019726,2]
[360088682,1746545453024,-153.201412,0.00019726,2]
[360088683,1746545453034,-400.0,0.00019726,2]
[360088684,1746545453045,-400.0,0.00019726,2]
[360088685,1746545453055,-151.0,0.00019726,2]
[360088686,1746545453065,-430.64,0.00019726,2]
[360088687,1746545453074,-400.0,0.00019726,2]
[360088688,1746545453083,-151.0,0.00019726,2]
[360088689,1746545453092,-151.0,0.00019726,2]
[360088690,1746545453102,-151.0,0.00019726,2]
[360088691,1746545453112,-161.223709,0.00019726,2]
[360088692,1746545453121,-400.0,0.00019726,2]
[360088693,1746545453132,-400.0,0.00019726,2]
[360088694,1746545453141,-400.0,0.00019726,2]
[360088695,1746545453150,-265.01697814,0.00019726,2]
[360088696,1746545453160,-608.74,0.00019726,2]
[360088697,1746545453170,-400.0,0.00019726,2]
[360088698,1746545453180,-400.0,0.00019726,2]
[360088699,1746545453190,-400.0,0.00019726,2]
[360088700,1746545453199,-400.0,0.00019726,2]
[360088701,1746545453208,-400.0,0.00019726,2]
[360088702,1746545453218,-500.0,0.00019726,2]
[360088703,1746545453227,-400.0,0.00019726,2]
[360088704,1746545453237,-400.0,0.00019726,2]
[360088705,1746545453247,-400.0,0.00019726,2]
[360088706,1746545453256,-400.0,0.00019726,2]
[360088707,1746545453266,-161.3063678,0.00019726,2]
[360088708,1746545453276,-400.0,0.00019726,2]
[360088709,1746545453285,-400.0,0.00019726,2]
[360088710,1746545453294,-400.0,0.00019726,2]
[360088711,1746545453303,-400.0,0.00019726,2]
[360088712,1746545453313,-400.0,0.00019726,2]
[360088713,1746545453322,-400.0,0.00019726,2]
[360088714,1746545453331,-400.0,0.00019726,2]
[360088715,1746545453341,-400.0,0.00019726,2]
[360088716,1746545453350,-400.0,0.00019726,2]
[360088717,1746545453360,-400.0,0.00019726,2]
[360088718,1746545453369,-408.46378272,0.00019726,2]
[360088719,1746545453379,-407.18242743,0.00019726,2]
[360088720,1746545453388,-400.0,0.00019726,2]
[360088721,1746545453398,-151.0,0.00019726,2]
[360088722,1746545453408,-151.0,0.00019726,2]
[360088723,1746545453417,-506.64979063,0.00019726,2]
[360088724,1746545453427,-400.0,0.00019726,2]
[360088725,1746545453436,-151.0,0.00019726,2]
[360088726,1746545453445,-151.0,0.00019726,2]
[360088727,1746545453455,-407.90484404,0.00019726,2]
[360088728,1746545453464,-1026.77,0.00019726,2]
[360088729,1746545453474,-400.0,0.00019726,2]
[360088730,1746545453484,-400.0,0.00019726,2]
[360088731,1746545453493,-571.29,0.00019726,2]
[360088732,1746545453503,-507.88361149,0.00019726,2]
[360088733,1746545453512,-852.0,0.00019726,2]
[360088734,1746545453522,-400.0,0.00019726,2]
[360088735,1746545453531,-289.22090928,0.00019726,2]
[360088736,1746545453540,-2938.9,0.00019726,2]
[360088737,1746545453549,-400.0,0.00019726,2]
[360088738,1746545453559,-205.78195,0.00019726,2]
[360088739,1746545453569,-202.21434323,0.00019726,2]
[360088740,1746545453579,-535.14,0.00019726,2]
[360088741,1746545453588,-400.0,0.00019726,2]
[360088742,1746545453597,-400.0,0.00019726,2]
[360088743,1746545453607,-1308.2,0.00019726,2]
[360088744,1746545453617,-400.0,0.00019726,2]
[360088745,1746545453626,-475.4,0.00019726,2]
[360088746,1746545453635,-400.0,0.00019726,2]
[360088747,1746545453645,-151.0,0.00019726,2]
[360088748,1746545453655,-151.0,0.00019726,2]
[360088749,1746545453665,-732.37,0.00019726,2]
[360088750,1746545453674,-400.0,0.00019726,2]
[360088751,1746545453684,-400.0,0.00019726,2]
[360088752,1746545453702,-433.28797714,0.00019726,2]
[360088753,1746545453714,-400.0,0.00019726,2]
[360088754,1746545453724,-400.0,0.00019726,2]
[360088755,1746545453734,-400.0,0.00019726,2]
[360088756,1746545453744,-1732.06,0.00019726,2]
[360088757,1746545453754,-707.1,0.00019726,2]
[360088758,1746545453764,-400.0,0.00019726,2]
[360088759,1746545453774,-400.0,0.00019726,2]
[360088760,1746545453785,-703.0,0.00019726,2]
[360088761,1746545453794,-5027.33,0.00019726,2]
[360088762,1746545453804,-400.0,0.00019726,2]
[360088763,1746545453816,-400.0,0.00019726,2]
[360088764,1746545453825,-400.0,0.00019726,2]
[360088765,1746545453835,-400.0,0.00019726,2]
[360088766,1746545453845,-400.0,0.00019726,2]
[360088767,1746545453855,-400.0,0.00019726,2]
[360088768,1746545453865,-400.0,0.00019726,2]
[360088769,1746545453875,-400.0,0.00019726,2]
[360088770,1746545453886,-400.0,0.00019726,2]
[360088771,1746545453896,-282.68756955,0.00019726,2]
[360088772,1746545453906,-409.84377489,0.00019726,2]
[360088773,1746545453916,-400.0,0.00019726,2]
[360088774,1746545453927,-3362.15,0.00019726,2]
[360088775,1746545453936,-400.0,0.00019726,2]
[360088776,1746545453946,-405.18487035,0.00019726,2]
[360088777,1746545453956,-400.0,0.00019726,2]
[360088778,1746545453970,-414.78530242,0.00019726,2]
[360088779,1746545453980,-400.0,0.00019726,2]
[360088780,1746545453990,-400.0,0.00019726,2]
[360088781,1746545454000,-722.94,0.00019726,2]
[360088782,1746545454010,-996.78,0.00019726,2]
[360088783,1746545454019,-400.0,0.00019726,2]
[360088784,1746545454029,-936.41,0.00019726,2]
[360088785,1746545454039,-1291.38,0.00019726,2]
[360088786,1746545454050,-400.0,0.00019726,2]
[360088787,1746545454060,-400.0,0.00019726,2]
[360088788,1746545454070,-151.0,0.00019726,2]
[360088789,1746545454080,-151.0,0.00019726,2]
[360088790,1746545454090,-400.0,0.00019726,2]
[360088791,1746545454099,-400.0,0.00019726,2]
[360088792,1746545454109,-400.0,0.00019726,2]
[360088793,1746545454118,-1287.28,0.00019726,2]
[360088794,1746545454128,-400.0,0.00019726,2]
[360088795,1746545454138,-871.33,0.00019726,2]
[360088796,1746545454147,-790.06,0.00019726,2]
[360088797,1746545454157,-403.67899135,0.00019726,2]
[360088798,1746545454166,-400.0,0.00019726,2]
[360088799,1746545454176,-404.26,0.00019726,2]
[360088800,1746545454185,-400.0,0.00019726,2]
[360088801,1746545454195,-400.0,0.00019726,2]
[360088802,1746545454204,-1582.65,0.00019726,2]
[360088803,1746545454214,-400.0,0.00019726,2]
[360088804,1746545454223,-400.0,0.00019726,2]
[360088805,1746545454233,-371.027915,0.00019726,2]
[360088806,1746545454243,-371.027915,0.00019726,2]
[360088807,1746545454252,-5728.17,0.00019726,2]
[360088808,1746545454262,-371.027915,0.00019726,2]
[360088809,1746545454272,-400.0,0.00019726,2]
[360088810,1746545454281,-371.027915,0.00019726,2]
[360088811,1746545454291,-400.0,0.00019726,2]
[360088812,1746545454300,-400.0,0.00019726,2]
[360088813,1746545454309,-548.5576816,0.00019726,2]
[360088814,1746545454320,-208.15339489,0.00019726,2]
[360088815,1746545454330,-400.0,0.00019726,2]
[360088816,1746545454339,-400.0,0.00019726,2]
[360088817,1746545454348,-864.92,0.00019726,2]
[360088818,1746545454357,-400.0,0.00019726,2]
[360088819,1746545454367,-400.0,0.00019726,2]
[360088820,1746545454376,-400.0,0.00019726,2]
[360088821,1746545454386,-151.0,0.00019726,2]
[360088822,1746545454395,-151.0,0.00019726,2]
[360088823,1746545454405,-167.867522,0.00019726,2]
[360088824,1746545454414,-400.0,0.00019726,2]
[360088825,1746545454424,-400.0,0.00019726,2]
[360088826,1746545454433,-400.0,0.00019726,2]
[360088827,1746545454443,-1287.6,0.00019726,2]
[360088828,1746545454452,-400.0,0.00019726,2]
[360088829,1746545454462,-400.0,0.00019726,2]
[360088830,1746545454472,-476.14,0.00019726,2]
[360088831,1746545454481,-1571.95,0.00019726,2]
[360088832,1746545454491,-400.0,0.00019726,2]
[360088833,1746545454500,-400.0,0.00019726,2]
[360088834,1746545454510,-492.72,0.00019726,2]
[360088835,1746545454519,-400.0,0.00019726,2]
[360088836,1746545454529,-400.0,0.00019726,2]
[360088837,1746545454539,-161.011687,0.00019726,2]
[360088838,1746545454548,-400.0,0.00019726,2]
[360088839,1746545454558,-161.011687,0.00019726,2]
[360088840,1746545454567,-400.0,0.00019726,2]
[360088841,1746545454576,-400.0,0.00019726,2]
[360088842,1746545454585,-161.011687,0.00019726,2]
[360088843,1746545454595,-161.011687,0.00019726,2]
[360088844,1746545454746,-505.15,0.00019726,2]
[360088845,1746545454770,-400.0,0.00019726,2]
[360088846,1746545454780,-1451.93,0.00019726,2]
[360088847,1746545454789,-400.0,0.00019726,2]
[360088848,1746545454799,-319.98224628,0.00019726,2]
[360088849,1746545454809,-762.0,0.00019726,2]
[360088850,1746545454820,-151.0,0.00019726,2]
[360088851,1746545454830,-400.0,0.00019726,2]
[360088852,1746545454840,-151.0,0.00019726,2]
[360088853,1746545454850,-400.0,0.00019726,2]
[360088854,1746545454860,-686.7,0.00019726,2]
[360088855,1746545454870,-990.58,0.00019726,2]
[360088856,1746545454880,-517.64,0.00019726,2]
[360088857,1746545454889,-1169.63,0.00019726,2]
[360088858,1746545454899,-400.0,0.00019726,2]
[360088859,1746545454909,-400.0,0.00019726,2]
[360088860,1746545454918,-692.67,0.00019726,2]
[360088861,1746545454928,-400.0,0.00019726,2]
[360088862,1746545454938,-400.0,0.00019726,2]
[360088863,1746545454947,-400.0,0.00019726,2]
[360088864,1746545454957,-195.35070066,0.00019726,2]
[360088865,1746545454971,-151.0,0.00019726,2]
[360088866,1746545454981,-999.35,0.00019726,2]
[360088867,1746545454990,-400.0,0.00019726,2]
[360088868,1746545455000,-400.0,0.00019726,2]
[360088869,1746545455010,-151.0,0.00019726,2]
[360088870,1746545455019,-591.3312437,0.00019726,2]
[360088871,1746545455028,-400.0,0.00019726,2]
[360088872,1746545455038,-407.80801258,0.00019726,2]
[360088873,1746545455049,-400.0,0.00019726,2]
[360088874,1746545455058,-400.0,0.00019726,2]
[360088875,1746545455067,-576.94626197,0.00019726,2]
[360088876,1746545455745,-200.82209684,0.000159,2]
[360088877,1746545455756,-400.0,0.00019178,2]
[360088878,1746545455766,-400.0,0.00019178,2]
[360088879,1746545455775,-400.0,0.00019178,2]
[360088880,1746545455786,-509.09113005,0.00019178,2]
[360088881,1746545455796,-400.0,0.00019178,2]
[360088882,1746545455806,-400.0,0.00019452,2]
[360088883,1746545455816,-235.21,0.00019452,2]
[360088884,1746545455825,-400.0,0.00019452,2]
[360088885,1746545455835,-55.77851003,0.00019726,2]
[360088886,1746545455845,-632.724772,0.00019726,2]
[360088887,1746545455855,-400.0,0.00019726,2]
[360088888,1746545455864,-1893.48,0.00019726,2]
[360088889,1746545455874,-400.0,0.00019726,2]
[360088890,1746545455883,-632.724772,0.00019726,2]
[360088891,1746545455893,-632.724772,0.00019726,2]
[360088892,1746545455903,-400.0,0.00019726,2]
[360088893,1746545455913,-4213.84,0.00019726,2]
[360088894,1746545455923,-531.79,0.00019726,2]
[360088895,1746545455932,-400.0,0.00019726,2]
[360088896,1746545455943,-400.0,0.00019726,2]
[360088897,1746545455952,-400.0,0.00019726,2]
[360088898,1746545455966,-960.32,0.00019726,2]
[360088899,1746545455975,-400.0,0.00019726,2]
[360088900,1746545455984,-587.8,0.00019726,2]
[360088901,1746545455994,-400.0,0.00019726,2]
[360088902,1746545456005,-400.0,0.00019726,2]
[360088903,1746545456015,-1117.42,0.00019726,2]
[360088904,1746545456024,-400.0,0.00019726,2]
[360088905,1746545456034,-400.0,0.00019726,2]
[360088906,1746545456045,-520.49,0.00019726,2]
[360088907,1746545456055,-414.59395073,0.00019726,2]
[360088908,1746545456065,-1182.36,0.00019726,2]
[360088909,1746545456075,-463.55,0.00019726,2]
[360088910,1746545456085,-400.0,0.00019726,2]
[360088911,1746545456095,-400.0,0.00019726,2]
[360088912,1746545456105,-400.0,0.00019726,2]
[360088913,1746545456115,-2380.02,0.00019726,2]
[360088914,1746545456125,-1986.4,0.00019726,2]
[360088915,1746545456136,-419.77861188,0.00019726,2]
[360088916,1746545456146,-400.0,0.00019726,2]
[360088917,1746545456156,-400.0,0.00019726,2]
[360088918,1746545456165,-400.0,0.00019726,2]
[360088919,1746545456175,-402.00725954,0.00019726,2]
[360088920,1746545456185,-397.37996137,0.00019726,2]
[360088921,1746545456195,-400.0,0.00019726,2]
[360088922,1746545456204,-739.61,0.00019726,2]
[360088923,1746545456214,-460.96,0.00019726,2]
[360088924,1746545456223,-2291.43,0.00019726,2]
[360088925,1746545456233,-151.0,0.00019726,2]
[360088926,1746545456243,-404.8,0.00019726,2]
[360088927,1746545456253,-400.0,0.00019726,2]
[360088928,1746545456380,-400.0,0.00019726,2]
[360088929,1746545456390,-400.0,0.00019726,2]
[360088930,1746545456400,-714.48,0.00019726,2]
[360088931,1746545456409,-400.0,0.00019726,2]
[360088932,1746545456419,-400.0,0.00019726,2]
[360088933,1746545456430,-1462.3,0.00019726,2]
[360088934,1746545456440,-400.0,0.00019726,2]
[360088935,1746545456449,-515.84546509,0.00019726,2]
[360088936,1746545456459,-2020.67,0.00019726,2]
[360088937,1746545456468,-678.24,0.00019726,2]
[360088938,1746545456477,-400.0,0.00019726,2]
[360088939,1746545456487,-2363.52,0.00019726,2]
[360088940,1746545456496,-777.59,0.00019726,2]
[360088941,1746545456506,-400.0,0.00019726,2]
[360088942,1746545456515,-400.0,0.00019726,2]
[360088943,1746545456526,-1725.95,0.00019726,2]
[360088944,1746545456535,-400.0,0.00019726,2]
[360088945,1746545456545,-493.87330158,0.00019726,2]
[360088946,1746545456917,-400.0,0.00019178,2]
[360088947,1746545456927,-400.0,0.00019178,2]
[360088948,1746545456937,-249.50127115,0.00019452,2]
[360088949,1746545456947,-828.96669842,0.00019726,2]
[360088950,1746545456957,-400.0,0.00019726,2]
[360088951,1746545456971,-605.23,0.00019726,2]
[360088952,1746545456980,-151.0,0.00019726,2]
[360088953,1746545456989,-151.0,0.00019726,2]
[360088954,1746545456999,-400.0,0.00019726,2]
[360088955,1746545457010,-400.0,0.00019726,2]
[360088956,1746545457021,-400.0,0.00019726,2]
[360088957,1746545457030,-400.0,0.00019726,2]
[360088958,1746545457039,-400.0,0.00019726,2]
[360088959,1746545457050,-1682.92,0.00019726,2]
[360088960,1746545457059,-616.96,0.00019726,2]
[360088961,1746545457071,-400.0,0.00019726,2]
[360088962,1746545457081,-1796.39,0.00019726,2]
[360088963,1746545457090,-1000.0,0.00019726,2]
[360088964,1746545457100,-2284.87119306,0.00019726,2]
[360088965,1746545457116,-4492.26493999,0.00019726,2]
[360088966,1746545457128,-668.6889125,0.00019726,2]
[360088967,1746545499868,-552.18,0.000266,120]
[360088968,1746545500148,-552.18,0.000269,120]
[360088969,1746545500521,-552.18,0.000272,120]
[360088970,1746545501216,-501.84855,0.00027397,120]
[360088971,1746545501515,-552.18,0.00027397,120]
[360088972,1746545501800,-183.277125,0.00027397,120]
[360088973,1746545501822,-49.195405,0.000274,120]
[360088974,1746545502101,-502.984595,0.000274,120]
[360088975,1746545502125,-49.185405,0.000277,120]
[360088976,1746545502813,-502.994595,0.000277,120]
[360088977,1746545502834,-552.17,0.00028,120]
[360088978,1746545502861,-232.47253,0.000292,120]
[360088979,1746545502882,-213.46818,0.000298,120]
[360088980,1746545502904,-288.38037,0.000298,120]
[360088981,1746545502925,-149.88453748,0.0003,120]
[360088982,1746545502945,-10182.32294629,0.0003,120]
[360088983,1746545502966,-2593.61008623,0.0003,120]
[360089093,1746546631877,-201.01492869,0.000159,2]
[360089095,1746546631887,-300.0,0.00017063,2]
[360089097,1746546631897,-10315.1858328,0.00017064,2]
[360089099,1746546631907,-183.6173637,0.00017172,2]
[360089101,1746546631916,-781.2574436,0.00017244,2]
[360089103,1746546631926,-282.20795577,0.00017949,2]
[360089105,1746546631936,-198.13690806,0.00018238,2]
[360089107,1746546631946,-500.0,0.00018271,2]
[360089109,1746546631955,-201.19651772,0.00018271,2]
[360089111,1746546631964,-500.0,0.00018273,2]
[360089113,1746546631973,-500.0,0.00018273,2]
[360089115,1746546631983,-500.0,0.00018273,2]
[360089117,1746546631992,-500.0,0.00018273,2]
[360089119,1746546632002,-500.0,0.00018273,2]
[360089121,1746546632011,-500.0,0.00018273,2]
[360089123,1746546632020,-500.0,0.00018273,2]
[360089125,1746546632030,-500.0,0.00018273,2]
[360089127,1746546632039,-500.0,0.00018273,2]
[360089129,1746546632049,-508.29,0.0001829,3]
[360089132,1746546632059,-931.9,0.0001829,3]
[360089134,1746546632069,-465.95,0.0001829,3]
[360089136,1746546632079,-232.97,0.0001829,3]
[360089138,1746546632089,-698.95,0.0001829,3]
[360089140,1746546632098,-17332.22994619,0.000183,2]
[360089292,1746546637982,-352667.77005381,0.000183,2]
[360089293,1746546637994,-862.16627921,0.00018438,2]
[360089294,1746546638004,-532.84497147,0.00018884,2]
[360089295,1746546638014,-717.47214698,0.000189,2]
[360089296,1746546638024,-1622.68031122,0.000189,2]
[360089297,1746546638034,-355.36559014,0.00019078,2]
[360089298,1746546638044,-155.0,0.00019166,2]
[360089300,1746546638054,-500.0,0.00019173,2]
[360089302,1746546638064,-500.0,0.00019173,2]
[360089304,1746546638073,-500.0,0.00019173,2]
[360089306,1746546638082,-500.0,0.00019173,2]
[360089308,1746546638092,-500.0,0.00019173,2]
[360089310,1746546638101,-286.26615067,0.00019173,2]
[360089312,1746546638111,-500.0,0.00019173,2]
[360089313,1746546638120,-500.0,0.00019173,2]
[360089314,1746546638129,-432.530265,0.00019173,2]
[360089315,1746546638139,-500.0,0.00019173,2]
[360089316,1746546638148,-518.51980356,0.00019173,2]
[360089317,1746546638157,-500.0,0.00019173,2]
[360089318,1746546638167,-500.0,0.00019173,2]
[360089319,1746546638176,-500.0,0.00019173,2]
[360089320,1746546638186,-500.0,0.00019173,2]
[360089321,1746546638195,-502.91977463,0.00019173,2]
[360089322,1746546638204,-500.0,0.00019173,2]
[360089323,1746546638214,-500.0,0.00019173,2]
[360089324,1746546638223,-500.0,0.00019173,2]
[360089325,1746546638232,-500.0,0.00019173,2]
[360089326,1746546638241,-501.13915385,0.00019173,2]
[360089327,1746546638251,-500.0,0.00019173,2]
[360089328,1746546638260,-500.0,0.00019173,2]
[360089329,1746546638270,-500.0,0.00019173,2]
[360089330,1746546638279,-500.0,0.00019173,2]
[360089331,1746546638288,-500.0,0.00019173,2]
[360089332,1746546638298,-500.0,0.00019173,2]
[360089333,1746546638308,-500.0,0.00019178,2]
[360089334,1746546638317,-500.0,0.00019178,2]
[360089335,1746546638326,-500.0,0.00019178,2]
[360089336,1746546638337,-500.0,0.00019178,2]
[360089337,1746546638347,-500.0,0.00019178,2]
[360089338,1746546638356,-500.0,0.00019178,2]
[360089339,1746546638365,-500.0,0.00019178,2]
[360089340,1746546638374,-500.0,0.00019178,2]
[360089341,1746546638384,-500.0,0.00019178,2]
[360089342,1746546638394,-237.20015273,0.00019178,2]
[360089343,1746546638403,-400.0,0.00019178,2]
[360089344,1746546638414,-403.2886634,0.00019178,2]
[360089345,1746546638423,-400.0,0.00019178,2]
[360089346,1746546638432,-400.0,0.00019178,2]
[360089347,1746546638442,-400.0,0.00019178,2]
[360089348,1746546638451,-400.0,0.00019178,2]
[360089349,1746546638460,-400.0,0.00019178,2]
[360089350,1746546638470,-400.0,0.00019178,2]
[360089351,1746546638479,-400.0,0.00019178,2]
[360089352,1746546638489,-400.0,0.00019178,2]
[360089353,1746546638498,-500.0,0.00019178,2]
[360089354,1746546638507,-501.97207744,0.00019178,2]
[360089355,1746546638517,-401.30935804,0.00019178,2]
[360089356,1746546638526,-400.0,0.00019178,2]
[360089357,1746546638535,-473.40339252,0.00019178,2]
[360089358,1746546638545,-400.0,0.00019178,2]
[360089359,1746546638555,-503.78798685,0.00019178,2]
[360089360,1746546638565,-272.93224761,0.00019178,2]
[360089361,1746546638574,-400.0,0.00019178,2]
[360089362,1746546638584,-209.64157535,0.00019178,2]
[360089363,1746546638593,-402.55365641,0.00019178,2]
[360089364,1746546638602,-400.0,0.00019178,2]
[360089365,1746546638611,-400.0,0.00019178,2]
[360089366,1746546638621,-400.0,0.00019178,2]
[360089367,1746546638631,-502.79430711,0.00019178,2]
[360089368,1746546638640,-400.0,0.00019178,2]
[360089369,1746546638650,-400.0,0.00019178,2]
[360089370,1746546638659,-257.3214084,0.00019178,2]
[360089371,1746546638669,-400.0,0.00019178,2]
[360089372,1746546638678,-400.0,0.00019178,2]